[Event "Early-Titled-Tuesday-Blitz-March-05-2024"]
[Site "Chess.com"]
[Date "2024.03.05"]
[Round "10"]
[White "TheAlienParty"]
[Black "JonasEilenberg"]
[Result "0-1"]
[WhiteElo "2397"]
[BlackElo "2548"]
[TimeControl "180+1"]
[EndTime "9:57:54 PST"]
[Termination "JonasEilenberg won by resignation"]

1. c4 {[%clk 0:02:59.8]} 1... e6 {[%clk 0:03:00]} 2. Nf3 {[%clk 0:02:57.8]} 2...
d5 {[%clk 0:03:00.7]} 3. e3 {[%clk 0:02:57.6]} 3... Nf6 {[%clk 0:03:00.1]} 4. b3
{[%clk 0:02:57.2]} 4... Be7 {[%clk 0:02:59.5]} 5. Bb2 {[%clk 0:02:56.6]} 5...
O-O {[%clk 0:03:00.1]} 6. cxd5 {[%clk 0:02:46.7]} 6... exd5 {[%clk 0:02:59.2]}
7. Bd3 {[%clk 0:02:46]} 7... Bg4 {[%clk 0:02:57.5]} 8. Qc2 {[%clk 0:02:44.5]}
8... Nbd7 {[%clk 0:02:53.8]} 9. Ne5 {[%clk 0:02:40.2]} 9... Nxe5 {[%clk
0:02:42.9]} 10. Bxe5 {[%clk 0:02:39.5]} 10... c6 {[%clk 0:02:43.5]} 11. Nc3
{[%clk 0:02:37.1]} 11... h6 {[%clk 0:02:38.6]} 12. h3 {[%clk 0:02:30.2]} 12...
Be6 {[%clk 0:02:37.8]} 13. f4 {[%clk 0:02:28.1]} 13... Bd6 {[%clk 0:02:37]} 14.
Bxd6 {[%clk 0:02:22.8]} 14... Qxd6 {[%clk 0:02:36.7]} 15. Ne2 {[%clk 0:02:21.4]}
15... Rac8 {[%clk 0:02:33.6]} 16. Nd4 {[%clk 0:02:16.1]} 16... c5 {[%clk
0:02:33.2]} 17. Nf5 {[%clk 0:02:15.8]} 17... Bxf5 {[%clk 0:02:31.4]} 18. Bxf5
{[%clk 0:02:15.4]} 18... Rc7 {[%clk 0:02:32.1]} 19. Rc1 {[%clk 0:02:12.5]} 19...
Re8 {[%clk 0:02:20.8]} 20. O-O {[%clk 0:02:11.5]} 20... c4 {[%clk 0:02:19.7]}
21. bxc4 {[%clk 0:01:51.5]} 21... dxc4 {[%clk 0:02:20.6]} 22. Rfd1 {[%clk
0:01:34.9]} 22... g6 {[%clk 0:02:18]} 23. Bd3 {[%clk 0:01:34.1]} 23... Rec8
{[%clk 0:02:11.9]} 24. Be2 {[%clk 0:01:32.3]} 24... b5 {[%clk 0:02:04.6]} 25.
Bf3 {[%clk 0:01:31.8]} 25... a6 {[%clk 0:02:02.5]} 26. Qc3 {[%clk 0:01:28.7]}
26... Rd8 {[%clk 0:01:56.1]} 27. Rc2 {[%clk 0:01:27.1]} 27... Nd5 {[%clk
0:01:55]} 28. Qa5 {[%clk 0:01:16.7]} 28... Nb4 {[%clk 0:01:42.5]} 29. Rb2 {[%clk
0:01:11.1]} 29... Nd3 {[%clk 0:01:40.6]} 30. Rbb1 {[%clk 0:01:06.1]} 30... Rcd7
{[%clk 0:01:40.1]} 31. a4 {[%clk 0:01:04.3]} 31... b4 {[%clk 0:01:37]} 32. Be2
{[%clk 0:00:59.2]} 32... b3 {[%clk 0:01:32]} 33. Qc3 {[%clk 0:00:58]} 33... Qe6
{[%clk 0:01:16.9]} 34. a5 {[%clk 0:00:49.1]} 34... Rc7 {[%clk 0:00:52.8]} 35.
Rxb3 {[%clk 0:00:43.5]} 35... Nxf4 {[%clk 0:00:50.2]} 36. Bf1 {[%clk 0:00:34.5]}
36... Nd5 {[%clk 0:00:46.2]} 37. Bxc4 {[%clk 0:00:29.3]} 37... Nxc3 {[%clk
0:00:45.7]} 38. Bxe6 {[%clk 0:00:29.1]} 38... Nxd1 {[%clk 0:00:44.5]} 39. Bg4
{[%clk 0:00:26.5]} 39... Rxd2 {[%clk 0:00:44.7]} 40. Rb8+ {[%clk 0:00:25.6]}
40... Kg7 {[%clk 0:00:44.6]} 41. e4 {[%clk 0:00:25.5]} 41... Ne3 {[%clk
0:00:44]} 42. Bf3 {[%clk 0:00:25.3]} 42... Rc1+ {[%clk 0:00:42.4]} 43. Kh2
{[%clk 0:00:25.2]} 43... Nxg2 {[%clk 0:00:43.1]} 44. Bxg2 {[%clk 0:00:24.8]}
44... Rcc2 {[%clk 0:00:43.8]} 45. Kg3 {[%clk 0:00:24.9]} 45... Rxg2+ {[%clk
0:00:44.3]} 46. Kf4 {[%clk 0:00:25]} 46... Rcf2+ {[%clk 0:00:43.9]} 47. Ke5
{[%clk 0:00:25.1]} 47... Rb2 {[%clk 0:00:44.8]} 48. Ra8 {[%clk 0:00:24.7]} 48...
Rb5+ {[%clk 0:00:45.3]} 49. Kd6 {[%clk 0:00:24.5]} 49... Rxa5 {[%clk 0:00:46.2]}
50. Ke7 {[%clk 0:00:24.3]} 50... Re2 {[%clk 0:00:46.1]} 51. Ra7 {[%clk
0:00:23.4]} 51... Rxe4+ {[%clk 0:00:46.5]} 52. Kd6 {[%clk 0:00:23.2]} 52... Re6+
{[%clk 0:00:43.9]} 53. Kd7 {[%clk 0:00:23.1]} 53... Rd5+ {[%clk 0:00:43.6]} 54.
Kc8 {[%clk 0:00:23.1]} 54... Rc6+ {[%clk 0:00:42.7]} 55. Kb8 {[%clk 0:00:23]}
55... Rd8+ {[%clk 0:00:41.8]} 56. Kb7 {[%clk 0:00:22.7]} 56... Rd7+ {[%clk
0:00:42.5]} 57. Kxc6 {[%clk 0:00:22.5]} 57... Rxa7 {[%clk 0:00:43.4]} 0-1

[Event "Early-Titled-Tuesday-Blitz-March-05-2024"]
[Site "Chess.com"]
[Date "2024.03.05"]
[Round "10"]
[White "ActorXu"]
[Black "BogdanDeac"]
[Result "1-0"]
[WhiteElo "2865"]
[BlackElo "2975"]
[TimeControl "180+1"]
[EndTime "9:58:00 PST"]
[Termination "ActorXu won on time"]

1. e4 {[%clk 0:03:00.9]} 1... e5 {[%clk 0:02:59.2]} 2. Nf3 {[%clk 0:03:00.6]}
2... Nc6 {[%clk 0:02:59.8]} 3. Bc4 {[%clk 0:03:00.8]} 3... Nf6 {[%clk 0:02:59]}
4. d3 {[%clk 0:03:01]} 4... Bc5 {[%clk 0:02:58.8]} 5. O-O {[%clk 0:03:01.4]}
5... d6 {[%clk 0:02:59.1]} 6. c3 {[%clk 0:03:01.9]} 6... a5 {[%clk 0:02:59.6]}
7. Nbd2 {[%clk 0:03:01.5]} 7... O-O {[%clk 0:02:59.5]} 8. h3 {[%clk 0:03:01.2]}
8... h6 {[%clk 0:02:59.9]} 9. Bb5 {[%clk 0:03:00.4]} 9... Ba7 {[%clk 0:02:46.1]}
10. Re1 {[%clk 0:02:59.9]} 10... Ne7 {[%clk 0:02:46.1]} 11. d4 {[%clk
0:02:55.6]} 11... Ng6 {[%clk 0:02:46.2]} 12. Bd3 {[%clk 0:02:48.9]} 12... Re8
{[%clk 0:02:40.4]} 13. Nf1 {[%clk 0:02:47.8]} 13... d5 {[%clk 0:02:15.8]} 14.
dxe5 {[%clk 0:02:22.1]} 14... Nxe4 {[%clk 0:02:14.6]} 15. Be3 {[%clk 0:02:08.5]}
15... Bxe3 {[%clk 0:02:01.9]} 16. Nxe3 {[%clk 0:01:59.1]} 16... c6 {[%clk
0:02:01.4]} 17. c4 {[%clk 0:01:51.8]} 17... Be6 {[%clk 0:01:53.1]} 18. cxd5
{[%clk 0:01:51.9]} 18... cxd5 {[%clk 0:01:53.8]} 19. Rc1 {[%clk 0:01:46.4]}
19... Qb6 {[%clk 0:01:49.6]} 20. Qb3 {[%clk 0:01:42.6]} 20... Qxb3 {[%clk
0:01:33.1]} 21. axb3 {[%clk 0:01:43.5]} 21... Rec8 {[%clk 0:00:22.3]} 22. Rcd1
{[%clk 0:01:38.1]} 22... Nf4 {[%clk 0:00:15.3]} 23. Nd4 {[%clk 0:01:28.9]} 23...
Nxd3 {[%clk 0:00:12]} 24. Rxd3 {[%clk 0:01:29.5]} 24... a4 {[%clk 0:00:12]} 25.
b4 {[%clk 0:01:15.1]} 25... g6 {[%clk 0:00:10.2]} 26. h4 {[%clk 0:01:11.4]}
26... Kh7 {[%clk 0:00:06.5]} 27. Ne2 {[%clk 0:01:06.9]} 27... d4 {[%clk
0:00:02.8]} 28. Rxd4 {[%clk 0:01:04.3]} 28... a3 {[%clk 0:00:03.1]} 29. bxa3
{[%clk 0:00:58.3]} 29... Nc3 {[%clk 0:00:03.1]} 30. Nf4 {[%clk 0:00:53.6]} 30...
Rc6 {[%clk 0:00:02.5]} 31. Nxe6 {[%clk 0:00:53.4]} 31... Rxe6 {[%clk 0:00:03.1]}
32. Rd7 {[%clk 0:00:53.4]} 32... Kg7 {[%clk 0:00:02.4]} 33. Nc4 {[%clk
0:00:42.1]} 33... b5 {[%clk 0:00:01.8]} 34. Nd6 {[%clk 0:00:41.9]} 34... Rxa3
{[%clk 0:00:02.5]} 35. Nxf7 {[%clk 0:00:36.1]} 35... Kf8 {[%clk 0:00:02.8]} 36.
Nxh6 {[%clk 0:00:35.3]} 36... Re7 {[%clk 0:00:02.7]} 37. e6 {[%clk 0:00:30.1]}
37... Ra8 {[%clk 0:00:01.3]} 38. Ng4 {[%clk 0:00:20.1]} 38... Na2 {[%clk
0:00:01.6]} 39. Re4 {[%clk 0:00:12.5]} 1-0

[Event "Early-Titled-Tuesday-Blitz-March-05-2024"]
[Site "Chess.com"]
[Date "2024.03.05"]
[Round "10"]
[White "scarabee43"]
[Black "Yeritsyaan"]
[Result "0-1"]
[WhiteElo "2872"]
[BlackElo "2643"]
[TimeControl "180+1"]
[EndTime "9:58:00 PST"]
[Termination "Yeritsyaan won on time"]

1. Nf3 {[%clk 0:03:00.9]} 1... Nf6 {[%clk 0:02:58.8]} 2. c4 {[%clk 0:03:00.9]}
2... c5 {[%clk 0:02:55.9]} 3. Nc3 {[%clk 0:03:00.7]} 3... b6 {[%clk 0:02:50]} 4.
g3 {[%clk 0:02:59.9]} 4... Bb7 {[%clk 0:02:50]} 5. Bg2 {[%clk 0:03:00.6]} 5...
e6 {[%clk 0:02:44.5]} 6. O-O {[%clk 0:03:00.6]} 6... a6 {[%clk 0:02:41.6]} 7. b3
{[%clk 0:02:54.9]} 7... d6 {[%clk 0:02:39.2]} 8. Re1 {[%clk 0:02:44]} 8... Be7
{[%clk 0:02:36.2]} 9. e4 {[%clk 0:02:43.7]} 9... Nbd7 {[%clk 0:02:34.2]} 10. d4
{[%clk 0:02:43.5]} 10... cxd4 {[%clk 0:02:34.5]} 11. Nxd4 {[%clk 0:02:44.2]}
11... Qc7 {[%clk 0:02:34.2]} 12. a4 {[%clk 0:02:35.3]} 12... O-O {[%clk
0:02:33.6]} 13. Be3 {[%clk 0:02:32.7]} 13... Rfe8 {[%clk 0:02:32.5]} 14. Rc1
{[%clk 0:02:32.3]} 14... Rac8 {[%clk 0:02:30.6]} 15. Qc2 {[%clk 0:02:17.4]}
15... Qb8 {[%clk 0:02:29.3]} 16. Qb1 {[%clk 0:02:14.4]} 16... Bf8 {[%clk
0:02:25.8]} 17. h3 {[%clk 0:02:13.6]} 17... Qa8 {[%clk 0:02:24.1]} 18. Kh2
{[%clk 0:02:04.4]} 18... Nc5 {[%clk 0:02:22]} 19. f3 {[%clk 0:02:00.7]} 19... g6
{[%clk 0:02:12.6]} 20. Re2 {[%clk 0:01:43]} 20... Bg7 {[%clk 0:02:09.7]} 21. a5
{[%clk 0:01:39.3]} 21... bxa5 {[%clk 0:02:08.2]} 22. Ra2 {[%clk 0:01:40]} 22...
Qb8 {[%clk 0:01:21]} 23. Rxa5 {[%clk 0:01:33.9]} 23... d5 {[%clk 0:01:21.5]} 24.
cxd5 {[%clk 0:01:28.6]} 24... exd5 {[%clk 0:01:22.4]} 25. Bf4 {[%clk 0:01:19.9]}
25... Qa7 {[%clk 0:01:18.3]} 26. e5 {[%clk 0:00:52.8]} 26... Nh5 {[%clk
0:01:16.6]} 27. b4 {[%clk 0:00:53.3]} 27... Nxf4 {[%clk 0:01:10.4]} 28. gxf4
{[%clk 0:00:53.8]} 28... Ne6 {[%clk 0:01:10.1]} 29. Nxe6 {[%clk 0:00:48.1]}
29... fxe6 {[%clk 0:01:08.7]} 30. Qd3 {[%clk 0:00:29.1]} 30... Bh6 {[%clk
0:01:03.3]} 31. Qd2 {[%clk 0:00:28.3]} 31... Rc4 {[%clk 0:01:01.1]} 32. Ne2
{[%clk 0:00:28.1]} 32... Rxc1 {[%clk 0:00:49.2]} 33. Qxc1 {[%clk 0:00:20.7]}
33... Qf2 {[%clk 0:00:46.4]} 34. Qf1 {[%clk 0:00:19.2]} 34... Qe3 {[%clk
0:00:43.9]} 35. b5 {[%clk 0:00:13.4]} 35... axb5 {[%clk 0:00:41.7]} 36. Ra7
{[%clk 0:00:11.7]} 36... Qxa7 {[%clk 0:00:38.8]} 37. Qb1 {[%clk 0:00:09.2]}
37... Qc5 {[%clk 0:00:36.7]} 38. h4 {[%clk 0:00:08.1]} 38... Qc4 {[%clk
0:00:36.7]} 39. Bf1 {[%clk 0:00:07.2]} 39... Bxf4+ {[%clk 0:00:36.2]} 40. Kg2
{[%clk 0:00:07.8]} 40... Bxe5 {[%clk 0:00:31.9]} 41. h5 {[%clk 0:00:08.2]} 41...
Qh4 {[%clk 0:00:29.7]} 42. f4 {[%clk 0:00:07.2]} 42... d4+ {[%clk 0:00:29.4]}
43. Kg1 {[%clk 0:00:06.7]} 43... Bxf4 {[%clk 0:00:27.4]} 44. Nxf4 {[%clk
0:00:05.5]} 44... Qxf4 {[%clk 0:00:27.9]} 45. hxg6 {[%clk 0:00:04.6]} 45... Qg3+
{[%clk 0:00:28.2]} 0-1

[Event "Early-Titled-Tuesday-Blitz-March-05-2024"]
[Site "Chess.com"]
[Date "2024.03.05"]
[Round "10"]
[White "RobertoJBM"]
[Black "cristianserban1"]
[Result "1-0"]
[WhiteElo "2826"]
[BlackElo "2516"]
[TimeControl "180+1"]
[EndTime "9:58:00 PST"]
[Termination "RobertoJBM won on time"]

1. d4 {[%clk 0:03:00.9]} 1... Nf6 {[%clk 0:03:00]} 2. Nf3 {[%clk 0:03:00.4]}
2... d5 {[%clk 0:03:00]} 3. e3 {[%clk 0:02:59.7]} 3... a6 {[%clk 0:02:54.7]} 4.
b3 {[%clk 0:02:57.2]} 4... e6 {[%clk 0:02:52.4]} 5. c4 {[%clk 0:02:56.2]} 5...
c5 {[%clk 0:02:32.6]} 6. Be2 {[%clk 0:02:45]} 6... dxc4 {[%clk 0:02:32.5]} 7.
Bxc4 {[%clk 0:02:43.6]} 7... b5 {[%clk 0:02:32.7]} 8. Be2 {[%clk 0:02:43.2]}
8... Bb7 {[%clk 0:02:32.7]} 9. a4 {[%clk 0:02:43.2]} 9... bxa4 {[%clk
0:02:12.1]} 10. Rxa4 {[%clk 0:02:39.1]} 10... cxd4 {[%clk 0:02:07.6]} 11. Rxd4
{[%clk 0:02:34.2]} 11... Qb6 {[%clk 0:02:02.8]} 12. O-O {[%clk 0:02:28.5]} 12...
Bc5 {[%clk 0:02:01.7]} 13. Rh4 {[%clk 0:02:18.5]} 13... O-O {[%clk 0:01:59.3]}
14. Nc3 {[%clk 0:02:18.6]} 14... Be7 {[%clk 0:01:52.8]} 15. Bb2 {[%clk
0:02:10.8]} 15... Nc6 {[%clk 0:01:45.6]} 16. Na4 {[%clk 0:02:04]} 16... Qd8
{[%clk 0:01:28.8]} 17. Qa1 {[%clk 0:01:56]} 17... Na5 {[%clk 0:01:16]} 18. b4
{[%clk 0:01:26]} 18... Nb3 {[%clk 0:01:09.9]} 19. Qb1 {[%clk 0:01:16.6]} 19...
h6 {[%clk 0:00:44.9]} 20. Rd1 {[%clk 0:01:05.8]} 20... Qe8 {[%clk 0:00:45]} 21.
Bxf6 {[%clk 0:01:00.7]} 21... Bxf6 {[%clk 0:00:41.9]} 22. Qxb3 {[%clk
0:01:00.6]} 22... Bxf3 {[%clk 0:00:38.1]} 23. Bxf3 {[%clk 0:00:59.9]} 23... Bxh4
{[%clk 0:00:38.7]} 24. Bxa8 {[%clk 0:00:58.4]} 24... Qxa8 {[%clk 0:00:39.6]} 25.
Nc5 {[%clk 0:00:52.9]} 25... Be7 {[%clk 0:00:37.6]} 26. Qc4 {[%clk 0:00:49.5]}
26... a5 {[%clk 0:00:25.1]} 27. Ra1 {[%clk 0:00:39.4]} 27... Rd8 {[%clk
0:00:14.8]} 28. h3 {[%clk 0:00:24.5]} 28... Qc6 {[%clk 0:00:06]} 29. Rxa5 {[%clk
0:00:15.8]} 29... Rd1+ {[%clk 0:00:05.8]} 30. Kh2 {[%clk 0:00:16.1]} 30... Bd6+
{[%clk 0:00:06.2]} 31. f4 {[%clk 0:00:16.6]} 31... Rd2 {[%clk 0:00:05.7]} 32.
Qe4 {[%clk 0:00:15.5]} 32... Qc7 {[%clk 0:00:04.7]} 33. Ra8+ {[%clk 0:00:15.1]}
33... Bf8 {[%clk 0:00:05.1]} 34. Qe5 {[%clk 0:00:05.6]} 34... Qc6 {[%clk
0:00:03.9]} 35. Qe4 {[%clk 0:00:06]} 35... Qc7 {[%clk 0:00:04.2]} 36. Qb7 {[%clk
0:00:05.8]} 36... Qxb7 {[%clk 0:00:03.2]} 37. Nxb7 {[%clk 0:00:06.7]} 37... Rb2
{[%clk 0:00:03.3]} 38. Nc5 {[%clk 0:00:06.1]} 1-0

[Event "Early-Titled-Tuesday-Blitz-March-05-2024"]
[Site "Chess.com"]
[Date "2024.03.05"]
[Round "10"]
[White "Kildepiotr"]
[Black "aridannie"]
[Result "1-0"]
[WhiteElo "2695"]
[BlackElo "2470"]
[TimeControl "180+1"]
[EndTime "9:58:00 PST"]
[Termination "Kildepiotr won on time"]

1. Nf3 {[%clk 0:02:55.6]} 1... Nf6 {[%clk 0:02:53.4]} 2. g3 {[%clk 0:02:54.9]}
2... g6 {[%clk 0:02:53.2]} 3. Bg2 {[%clk 0:02:55.5]} 3... Bg7 {[%clk 0:02:53.2]}
4. O-O {[%clk 0:02:56.4]} 4... O-O {[%clk 0:02:53.5]} 5. d4 {[%clk 0:02:57]}
5... d6 {[%clk 0:02:53.2]} 6. Nbd2 {[%clk 0:02:57.2]} 6... Nbd7 {[%clk
0:02:47.8]} 7. e4 {[%clk 0:02:57.3]} 7... c5 {[%clk 0:02:45.9]} 8. c3 {[%clk
0:02:57]} 8... a6 {[%clk 0:02:45.2]} 9. Qe2 {[%clk 0:02:56.6]} 9... e5 {[%clk
0:02:42.3]} 10. dxe5 {[%clk 0:02:56.3]} 10... Nxe5 {[%clk 0:02:37.7]} 11. Nxe5
{[%clk 0:02:56.4]} 11... dxe5 {[%clk 0:02:38.6]} 12. Nc4 {[%clk 0:02:55.8]}
12... Qc7 {[%clk 0:02:35.6]} 13. a4 {[%clk 0:02:55.5]} 13... b6 {[%clk
0:02:33.7]} 14. Bg5 {[%clk 0:02:53.3]} 14... Be6 {[%clk 0:02:22]} 15. Rfd1
{[%clk 0:02:52.9]} 15... b5 {[%clk 0:02:16.7]} 16. axb5 {[%clk 0:02:49.5]} 16...
axb5 {[%clk 0:02:17.6]} 17. Ne3 {[%clk 0:02:47.8]} 17... Rxa1 {[%clk 0:02:05.9]}
18. Rxa1 {[%clk 0:02:47.5]} 18... h6 {[%clk 0:02:01.5]} 19. Bxf6 {[%clk
0:02:47.4]} 19... Bxf6 {[%clk 0:02:02.4]} 20. Qxb5 {[%clk 0:02:46.9]} 20... Rb8
{[%clk 0:01:54.2]} 21. Qe2 {[%clk 0:02:46.6]} 21... Qb6 {[%clk 0:01:47.2]} 22.
Bf1 {[%clk 0:02:19.5]} 22... Qxb2 {[%clk 0:01:44.1]} 23. Qxb2 {[%clk 0:02:19.7]}
23... Rxb2 {[%clk 0:01:44.6]} 24. Bc4 {[%clk 0:02:20]} 24... Bxc4 {[%clk
0:01:39.3]} 25. Nxc4 {[%clk 0:02:20.9]} 25... Rc2 {[%clk 0:01:39.1]} 26. Ra3
{[%clk 0:02:19.6]} 26... h5 {[%clk 0:01:34.5]} 27. h4 {[%clk 0:02:17.9]} 27...
Re2 {[%clk 0:01:22.2]} 28. Ne3 {[%clk 0:02:15.6]} 28... Re1+ {[%clk 0:01:07.3]}
29. Kg2 {[%clk 0:02:15.5]} 29... Kg7 {[%clk 0:01:06.5]} 30. Ra5 {[%clk
0:02:12.3]} 30... Be7 {[%clk 0:01:03.6]} 31. Ra7 {[%clk 0:02:09.3]} 31... Bf8
{[%clk 0:01:01.5]} 32. Kf3 {[%clk 0:02:07.4]} 32... Rc1 {[%clk 0:00:45.5]} 33.
Nd5 {[%clk 0:02:07]} 33... Rc2 {[%clk 0:00:37]} 34. Rc7 {[%clk 0:02:02.9]} 34...
Rc1 {[%clk 0:00:32.7]} 35. Ke2 {[%clk 0:01:59.4]} 35... Rc2+ {[%clk 0:00:31.9]}
36. Ke3 {[%clk 0:01:59.8]} 36... Rc1 {[%clk 0:00:31.5]} 37. Kd2 {[%clk
0:01:58.6]} 37... Rf1 {[%clk 0:00:30.7]} 38. Ke2 {[%clk 0:01:59]} 38... Rc1
{[%clk 0:00:30.7]} 39. Rb7 {[%clk 0:01:51.5]} 39... Rc2+ {[%clk 0:00:30.1]} 40.
Kf3 {[%clk 0:01:49.1]} 40... Rc1 {[%clk 0:00:28.2]} 41. Rb2 {[%clk 0:01:46.6]}
41... Rf1 {[%clk 0:00:24.5]} 42. Ke2 {[%clk 0:01:44.1]} 42... Rc1 {[%clk
0:00:24.3]} 43. Kd3 {[%clk 0:01:43.4]} 43... Rf1 {[%clk 0:00:21.8]} 44. Kc4
{[%clk 0:01:42.2]} 44... Rd1 {[%clk 0:00:20.5]} 45. Ne3 {[%clk 0:01:41.4]} 45...
Rc1 {[%clk 0:00:18.6]} 46. Rd2 {[%clk 0:01:38.1]} 46... Rb1 {[%clk 0:00:17.6]}
47. Rd5 {[%clk 0:01:36.8]} 47... f6 {[%clk 0:00:15.5]} 48. Rd7+ {[%clk
0:01:35.5]} 48... Kg8 {[%clk 0:00:15.7]} 49. Kd5 {[%clk 0:01:32.5]} 49... Rc1
{[%clk 0:00:12.8]} 50. Ke6 {[%clk 0:01:31.6]} 50... Bg7 {[%clk 0:00:12]} 51. Nd5
{[%clk 0:01:28.8]} 51... Rf1 {[%clk 0:00:11.1]} 52. Nxf6+ {[%clk 0:01:26.2]}
52... Bxf6 {[%clk 0:00:11.4]} 53. Kxf6 {[%clk 0:01:27.1]} 53... Rxf2+ {[%clk
0:00:11.6]} 54. Kxg6 {[%clk 0:01:27.7]} 54... Kf8 {[%clk 0:00:11.5]} 55. Rd3
{[%clk 0:01:23.1]} 55... c4 {[%clk 0:00:08.8]} 56. Re3 {[%clk 0:01:23.1]} 56...
Ke7 {[%clk 0:00:08.2]} 57. Kxh5 {[%clk 0:01:23.1]} 57... Kf6 {[%clk 0:00:08.4]}
58. g4 {[%clk 0:01:22.6]} 58... Rf4 {[%clk 0:00:07.1]} 59. g5+ {[%clk
0:01:22.9]} 59... Kg7 {[%clk 0:00:07.4]} 60. Re1 {[%clk 0:01:17.6]} 60... Rf3
{[%clk 0:00:06]} 61. Ra1 {[%clk 0:01:14.6]} 61... Rxc3 {[%clk 0:00:06]} 62. Ra7+
{[%clk 0:01:14.6]} 62... Kf8 {[%clk 0:00:05.7]} 63. g6 {[%clk 0:01:13.5]} 63...
Rg3 {[%clk 0:00:05.2]} 64. Kh6 {[%clk 0:01:13.5]} 64... c3 {[%clk 0:00:04.1]}
65. g7+ {[%clk 0:01:12.9]} 65... Ke8 {[%clk 0:00:04.2]} 66. Ra8+ {[%clk
0:01:12.6]} 66... Kf7 {[%clk 0:00:03]} 67. Rf8+ {[%clk 0:01:12.6]} 67... Ke7
{[%clk 0:00:02.9]} 68. g8=Q {[%clk 0:01:12.9]} 68... Rxg8 {[%clk 0:00:02.3]} 69.
Rxg8 {[%clk 0:01:13.8]} 1-0

[Event "Early-Titled-Tuesday-Blitz-March-05-2024"]
[Site "Chess.com"]
[Date "2024.03.05"]
[Round "10"]
[White "viktorgen2021"]
[Black "Hui_Li_Macau"]
[Result "0-1"]
[WhiteElo "2472"]
[BlackElo "2398"]
[TimeControl "180+1"]
[EndTime "9:58:02 PST"]
[Termination "Hui_Li_Macau won by resignation"]

1. d4 {[%clk 0:02:55.1]} 1... d5 {[%clk 0:02:59.6]} 2. Nf3 {[%clk 0:02:55.7]}
2... Nf6 {[%clk 0:02:59.1]} 3. c4 {[%clk 0:02:56.3]} 3... e6 {[%clk 0:02:57.1]}
4. e3 {[%clk 0:02:56.8]} 4... c5 {[%clk 0:02:55.9]} 5. cxd5 {[%clk 0:02:56.4]}
5... exd5 {[%clk 0:02:53.5]} 6. Nc3 {[%clk 0:02:56.8]} 6... Nc6 {[%clk
0:02:50.8]} 7. Be2 {[%clk 0:02:56]} 7... Bg4 {[%clk 0:02:50.6]} 8. O-O {[%clk
0:02:53.5]} 8... Bxf3 {[%clk 0:02:46.5]} 9. Bxf3 {[%clk 0:02:52.3]} 9... cxd4
{[%clk 0:02:46.9]} 10. exd4 {[%clk 0:02:51.3]} 10... Be7 {[%clk 0:02:47.5]} 11.
Re1 {[%clk 0:02:50.8]} 11... O-O {[%clk 0:02:47.2]} 12. a3 {[%clk 0:02:48.1]}
12... Re8 {[%clk 0:02:32.3]} 13. Be3 {[%clk 0:02:46.9]} 13... Bf8 {[%clk
0:02:09.8]} 14. Rc1 {[%clk 0:02:45.2]} 14... Rc8 {[%clk 0:01:57.7]} 15. Bg5
{[%clk 0:02:38.5]} 15... Rxe1+ {[%clk 0:01:55.2]} 16. Qxe1 {[%clk 0:02:35.6]}
16... Nxd4 {[%clk 0:01:52.8]} 17. Bxd5 {[%clk 0:02:33.8]} 17... h6 {[%clk
0:01:15.7]} 18. Rd1 {[%clk 0:02:25.5]} 18... hxg5 {[%clk 0:00:50.6]} 19. Rxd4
{[%clk 0:02:23.7]} 19... Qb6 {[%clk 0:00:40.4]} 20. Rd2 {[%clk 0:02:19.3]} 20...
Bxa3 {[%clk 0:00:19.1]} 21. Qa1 {[%clk 0:01:46.2]} 21... Bb4 {[%clk 0:00:16.8]}
22. Bf3 {[%clk 0:01:38]} 22... g4 {[%clk 0:00:09.7]} 23. Be2 {[%clk 0:01:35.8]}
23... Rd8 {[%clk 0:00:06.8]} 24. Qd1 {[%clk 0:01:32.1]} 24... Rxd2 {[%clk
0:00:06.3]} 25. Qxd2 {[%clk 0:01:33]} 25... g6 {[%clk 0:00:04]} 26. Bc4 {[%clk
0:01:27]} 26... Kg7 {[%clk 0:00:03.6]} 27. Qc2 {[%clk 0:01:18.4]} 27... Qc5
{[%clk 0:00:03.6]} 28. Qb3 {[%clk 0:01:17.1]} 28... Bxc3 {[%clk 0:00:03.5]} 29.
Qxc3 {[%clk 0:01:16.4]} 29... b5 {[%clk 0:00:02.7]} 30. Bd3 {[%clk 0:01:12.4]}
30... Qxc3 {[%clk 0:00:03.1]} 31. bxc3 {[%clk 0:01:12.8]} 31... a6 {[%clk
0:00:03.6]} 32. Kf1 {[%clk 0:01:12.6]} 32... Nd5 {[%clk 0:00:03.9]} 33. c4
{[%clk 0:01:13]} 33... Nf4 {[%clk 0:00:04]} 34. Bc2 {[%clk 0:01:09.9]} 34...
bxc4 {[%clk 0:00:04.1]} 35. g3 {[%clk 0:01:10.8]} 35... Nd3 {[%clk 0:00:04.1]}
36. Ke2 {[%clk 0:01:10.9]} 36... Ne5 {[%clk 0:00:04.1]} 37. Ke3 {[%clk
0:01:10.9]} 37... f5 {[%clk 0:00:03.7]} 38. Kd4 {[%clk 0:01:10.8]} 38... Kf6
{[%clk 0:00:04.1]} 39. Ke3 {[%clk 0:01:09.3]} 39... Ke7 {[%clk 0:00:03.9]} 40.
Kd4 {[%clk 0:01:09.6]} 40... Kd6 {[%clk 0:00:04.1]} 41. Bb1 {[%clk 0:01:09.3]}
41... Nf3+ {[%clk 0:00:04.1]} 42. Ke3 {[%clk 0:01:09]} 42... Nxh2 {[%clk
0:00:04.4]} 43. Kd4 {[%clk 0:01:09.7]} 43... Nf3+ {[%clk 0:00:04.6]} 44. Kc3
{[%clk 0:01:09.3]} 44... Kc5 {[%clk 0:00:04.8]} 45. Ba2 {[%clk 0:01:09]} 45...
Ne5 {[%clk 0:00:05]} 46. Bb1 {[%clk 0:01:09.3]} 46... a5 {[%clk 0:00:05.3]} 47.
Bc2 {[%clk 0:01:07.1]} 47... Nd3 {[%clk 0:00:05.6]} 48. Ba4 {[%clk 0:01:03.2]}
48... Nxf2 {[%clk 0:00:04.8]} 49. Be8 {[%clk 0:01:04.1]} 49... Ne4+ {[%clk
0:00:05.6]} 50. Kc2 {[%clk 0:01:03.7]} 50... Nxg3 {[%clk 0:00:06.5]} 51. Bxg6
{[%clk 0:01:04.2]} 51... Ne4 {[%clk 0:00:07.4]} 52. Bxf5 {[%clk 0:01:04.2]}
52... Nf6 {[%clk 0:00:07.4]} 53. Kc3 {[%clk 0:01:04]} 53... g3 {[%clk
0:00:06.4]} 54. Bh3 {[%clk 0:01:04.9]} 54... Ne4+ {[%clk 0:00:06.4]} 55. Kc2
{[%clk 0:01:04.5]} 55... Kd4 {[%clk 0:00:06.6]} 56. Bg2 {[%clk 0:01:04.4]} 56...
a4 {[%clk 0:00:05.1]} 57. Kb2 {[%clk 0:01:03.5]} 57... Nd6 {[%clk 0:00:04.5]}
58. Ka3 {[%clk 0:01:02.8]} 58... Nf5 {[%clk 0:00:05]} 59. Kxa4 {[%clk
0:01:03.2]} 59... Ne3 {[%clk 0:00:05.8]} 60. Bh3 {[%clk 0:01:03.4]} 60... g2
{[%clk 0:00:06.7]} 0-1